bitfinex-derivatives/quotes_BNBF0:USTF0_20250715
["timestamp","ask_amount","ask_price","bid_price","bid_amount"]
[1752584359137,0.98887796,681.83,681.19,0.98698015]
[1752584361542,0.98887796,681.84,681.21,0.98698015]
[1752584361741,0.98887796,681.86,681.23,0.98698015]
[1752584362943,0.98887796,681.87,681.24,0.98698015]
[1752584363243,0.98887796,681.88,681.22,0.98698015]
[1752584363440,0.25530042,682.18,680.43,0.2553435]
[1752584363643,0.98741797,681.88,681.22,0.98373115]
[1752584364241,0.98741797,681.88,681.23,0.98373115]
[1752584364440,0.98741797,681.88,681.22,0.98373115]
[1752584364943,0.98741797,681.89,681.22,0.98373115]
[1752584365242,0.98741797,681.9,681.22,0.98373115]
[1752584365440,0.98741797,681.89,681.21,0.98373115]
[1752584367842,0.98741797,681.89,681.22,0.98373115]
[1752584369545,0.98741797,681.88,681.22,0.98373115]
[1752584369741,0.98741797,681.89,681.21,0.98373115]
[1752584370243,0.98741797,681.9,681.21,0.98373115]
[1752584370441,0.98741797,681.89,681.21,0.98373115]
[1752584370643,0.98741797,681.9,681.21,0.98373115]
[1752584371145,0.98741797,681.89,681.22,0.98373115]
[1752584373149,0.98741797,681.9,681.21,0.98373115]
[1752584373546,0.98741797,681.89,681.21,0.98373115]
[1752584374449,0.98741797,681.89,681.22,0.98373115]
[1752584375051,0.98741797,681.9,681.21,0.98373115]
[1752584376651,0.98741797,681.9,681.2,0.98373115]
[1752584377148,0.98741797,681.9,681.21,0.98373115]
[1752584377855,0.98741797,681.89,681.21,0.98373115]
[1752584379356,1.3165573,682.06,681.04,1.3116415]
[1752584379556,0.25530042,682.18,680.43,0.2553435]
[1752584379754,0.98799752,681.84,681.18,0.98406681]
[1752584381051,0.98799752,681.81,681.15,0.98406681]
[1752584381551,0.98799752,681.8,681.15,0.98406681]
[1752584381955,0.98799752,681.81,681.15,0.98406681]
[1752584382958,0.98799752,681.83,681.15,0.98406681]
[1752584383254,0.98799752,681.81,681.15,0.98406681]
[1752584383859,0.98799752,681.8,681.16,0.98406681]
[1752584384060,0.98799752,681.79,681.16,0.98406681]
[1752584385557,0.98799752,681.78,681.17,0.98406681]
[1752584389162,0.98799752,681.8,681.16,0.98406681]
[1752584389762,0.98799752,681.8,681.15,0.98406681]
[1752584391758,0.98799752,681.81,681.16,0.98406681]
[1752584391962,0.98799752,681.8,681.16,0.98406681]
[1752584392759,0.98799752,681.79,681.17,0.98406681]
[1752584393759,0.98799752,681.78,681.17,0.98406681]
[1752584395162,0.98799752,681.78,681.18,0.98406681]
[1752584396463,0.98799752,681.79,681.17,0.98406681]
[1752584396664,0.98799752,681.78,681.18,0.98406681]
[1752584396871,0.98799752,681.79,681.17,0.98406681]
[1752584398662,0.98799752,681.79,681.18,0.98406681]
[1752584399068,0.98799752,681.76,681.19,0.98406681]
[1752584399563,0.98799752,681.75,681.18,0.98406681]
[1752584399766,0.98799752,681.74,681.18,0.98406681]
[1752584401470,0.98799752,681.78,681.22,0.98406681]
[1752584401670,0.98799752,681.83,681.19,0.98406681]
[1752584402073,0.98799752,681.82,681.19,0.98406681]
[1752584402278,0.98799752,681.82,681.2,0.98406681]
[1752584402574,0.98799752,681.81,681.18,0.98406681]
[1752584402880,0.98799752,681.82,681.17,0.98406681]
[1752584404479,0.98799752,681.81,681.18,0.98406681]
[1752584407784,0.98799752,681.76,681.21,0.98406681]
[1752584408789,0.98799752,681.77,681.2,0.98406681]
[1752584409497,0.98799752,681.78,681.2,0.98406681]
[1752584409987,0.98799752,681.75,681.22,0.98406681]
[1752584410592,0.98799752,681.75,681.21,0.98406681]
[1752584411093,0.98799752,681.76,681.21,0.98406681]
[1752584412093,0.98882667,681.76,681.21,0.98551007]
[1752584412890,0.98882667,681.77,681.2,0.98551007]
[1752584413595,0.98882667,681.82,681.13,0.98551007]
[1752584413889,0.98882667,681.81,681.12,0.98551007]
[1752584415392,0.98882667,681.81,681.11,0.98551007]
[1752584415593,1.31733,682.0,681.11,0.98551007]
[1752584415594,0.98882667,681.8,681.11,0.98551007]
[1752584417400,0.98882667,681.81,681.1,0.98551007]
[1752584418000,0.98882667,681.8,681.11,0.98551007]
[1752584418296,0.98882667,681.81,681.1,0.98551007]
[1752584421699,0.98882667,681.8,681.1,0.98551007]
[1752584422800,0.98882667,681.81,681.1,0.98551007]
[1752584423004,0.98882667,681.82,681.1,0.98551007]
[1752584423504,0.98882667,681.76,681.14,0.98551007]
[1752584426204,0.98882667,681.75,681.14,0.98551007]
[1752584426401,0.98882667,681.72,681.16,0.98551007]
[1752584427208,0.98882667,681.72,681.17,0.98551007]
[1752584430111,0.98882667,681.72,681.16,0.98551007]
[1752584430313,0.98882667,681.68,681.19,0.98551007]
[1752584430606,0.98882667,681.69,681.19,0.98551007]
[1752584430807,0.98882667,681.68,681.19,0.98551007]
[1752584431006,0.98882667,681.69,681.18,0.98551007]
[1752584431809,0.98882667,681.69,681.19,0.98551007]
[1752584432006,0.98882667,681.71,681.2,0.98551007]
[1752584432207,0.98882667,681.7,681.21,0.98551007]
[1752584432417,0.98882667,681.7,681.2,0.98551007]
[1752584432617,0.98882667,681.7,681.21,0.98551007]
[1752584432909,0.98882667,681.73,681.19,0.98551007]
[1752584433909,0.98882667,681.71,681.21,0.98551007]
[1752584434119,0.98882667,681.71,681.2,0.98551007]
[1752584435112,0.98882667,681.7,681.21,0.98551007]
[1752584435414,0.98882667,681.69,681.2,0.98551007]
[1752584435615,0.98882667,681.68,681.21,0.98551007]
[1752584435815,0.98882667,681.68,681.2,0.98551007]
[1752584436012,0.98882667,681.69,681.2,0.98551007]
[1752584436316,0.98882667,681.68,681.21,0.98551007]
[1752584437316,0.98882667,681.69,681.2,0.98551007]
[1752584437512,0.98882667,681.69,681.21,0.98551007]
[1752584437813,0.98882667,681.72,681.19,0.98551007]
[1752584438012,0.98882667,681.73,681.18,0.98551007]
[1752584438216,0.98882667,681.72,681.18,0.98551007]
[1752584439216,0.98882667,681.72,681.19,0.98551007]
[1752584444518,0.98882667,681.71,681.2,0.98551007]
[1752584447725,0.98882667,681.7,681.2,0.98551007]
[1752584447916,0.98882667,681.71,681.2,0.98551007]
[1752584448517,0.98882667,681.76,681.16,0.98551007]
[1752584449117,1.31733,681.94,680.99,1.312089]
[1752584449421,0.98943117,681.76,681.16,0.98620437]
[1752584449717,0.98943117,681.77,681.17,0.98620437]
[1752584452824,0.98943117,681.76,681.18,0.98620437]
[1752584453624,0.98943117,681.77,681.19,0.98620437]
[1752584454423,0.98943117,681.76,681.19,0.98620437]
[1752584455821,0.98943117,681.73,681.22,0.98620437]
[1752584456321,0.98943117,681.72,681.22,0.98620437]
[1752584456924,0.98943117,681.73,681.22,0.98620437]
[1752584457924,0.98943117,681.74,681.21,0.98620437]
[1752584459227,0.98943117,681.73,681.21,0.98620437]
[1752584459721,1.31733,681.9,681.05,1.312089]
[1752584460026,0.98985375,681.73,681.21,0.9868567]
[1752584461925,0.98985375,681.73,681.22,0.9868567]
[1752584462130,0.98985375,681.73,681.21,0.9868567]
[1752584462326,0.98985375,681.73,681.22,0.9868567]
[1752584462529,0.98985375,681.72,681.22,0.9868567]
[1752584462729,0.98985375,681.73,681.22,0.9868567]
[1752584466032,0.98985375,681.71,681.23,0.9868567]
[1752584466835,0.98985375,681.78,681.18,0.9868567]
[1752584467932,0.98985375,681.76,681.16,0.9868567]
[1752584468437,0.98985375,681.68,681.08,0.9868567]
[1752584469039,0.98985375,681.65,681.05,0.9868567]
[1752584469536,0.98985375,681.66,681.04,0.9868567]
[1752584470038,0.98985375,681.67,681.04,0.9868567]
[1752584470335,0.98985375,681.66,681.04,0.9868567]
[1752584470537,0.98985375,681.67,681.03,0.9868567]
[1752584471634,0.98985375,681.68,681.03,0.9868567]
[1752584471835,0.98985375,681.68,681.02,0.9868567]
[1752584472436,0.98985375,681.68,680.82,1.312089]
[1752584472437,0.98985375,681.63,681.06,0.9868567]
[1752584472935,0.98985375,681.64,681.05,0.9868567]
[1752584473337,0.98985375,681.64,681.04,0.9868567]
[1752584473637,0.98985375,681.63,681.05,0.9868567]
[1752584473837,0.98985375,681.62,681.06,0.9868567]
[1752584474237,0.98985375,681.62,681.05,0.9868567]
[1752584474640,0.98985375,681.61,681.04,0.9868567]
[1752584475438,0.98985375,681.62,681.04,0.9868567]
[1752584475640,0.98985375,681.63,681.05,0.9868567]
[1752584476142,0.98985375,681.63,680.76,0.25530978]
[1752584476143,0.98985375,681.63,681.06,0.9868567]
[1752584476439,0.98985375,681.7,681.14,0.9868567]
[1752584477241,0.98985375,681.71,681.15,0.9868567]
[1752584477440,0.98985375,681.71,681.16,0.9868567]
[1752584478046,0.98985375,681.73,681.15,0.9868567]
[1752584479344,0.98985375,681.72,681.15,0.9868567]
[1752584480243,0.98985375,681.71,681.16,0.9868567]
[1752584480645,0.98985375,681.73,681.15,0.9868567]
[1752584481246,0.98985375,681.77,681.12,0.9868567]
[1752584481446,0.98985375,681.78,681.13,0.9868567]
[1752584481643,0.98985375,681.8,681.15,0.9868567]
[1752584482643,0.98985375,681.82,681.16,0.9868567]
[1752584483042,0.98985375,681.82,681.17,0.9868567]
[1752584483341,0.98985375,681.83,681.17,0.9868567]
[1752584484347,0.98985375,681.82,681.18,0.9868567]
[1752584484544,0.98985375,681.82,681.17,0.9868567]
[1752584488149,0.98985375,681.83,681.17,0.9868567]
[1752584488351,0.98985375,681.82,681.17,0.9868567]
[1752584488753,0.98985375,681.78,681.18,0.9868567]
[1752584488953,0.98985375,681.78,681.2,0.9868567]
[1752584489253,0.98985375,681.78,681.21,0.9868567]
[1752584489457,0.98985375,681.77,681.21,0.9868567]
[1752584489850,0.98985375,681.76,681.22,0.9868567]
[1752584490449,0.98985375,681.76,681.21,0.9868567]
[1752584492855,0.98985375,681.78,681.2,0.9868567]
[1752584493055,0.98985375,681.84,681.25,0.9868567]
[1752584493456,0.98985375,681.83,681.26,0.9868567]
[1752584494551,0.98985375,681.83,680.76,0.25530978]
[1752584494552,0.98985375,681.83,681.25,0.9868567]
[1752584494857,0.98985375,681.84,681.25,0.9868567]
[1752584495054,0.98985375,681.83,681.25,0.9868567]
[1752584495354,0.98985375,681.84,681.25,0.9868567]
[1752584495555,0.98985375,681.84,681.24,0.9868567]
[1752584495757,0.98985375,681.85,681.24,0.9868567]
[1752584496261,0.98985375,681.84,681.24,0.9868567]
[1752584497361,0.98985375,681.83,681.24,0.9868567]
[1752584497556,0.98985375,681.83,681.25,0.9868567]
[1752584498364,0.98985375,681.83,681.24,0.9868567]
[1752584499367,0.98985375,681.75,681.17,0.9868567]
[1752584500963,0.98985375,681.73,681.19,0.9868567]
[1752584501167,0.98985375,681.72,681.18,0.9868567]
[1752584501967,0.98985375,681.7,681.17,0.9868567]
[1752584502972,0.98985375,681.72,681.16,0.9868567]
[1752584503271,0.98985375,681.72,681.15,0.9868567]
[1752584504271,0.98985375,681.71,681.15,0.9868567]
[1752584506974,0.98985375,681.72,681.15,0.9868567]
[1752584507169,0.98985375,681.71,681.16,0.9868567]
[1752584507474,0.98985375,681.72,681.15,0.9868567]
[1752584510175,0.98985375,681.73,681.15,0.9868567]
[1752584511874,0.98985375,681.73,681.07,0.9868567]
[1752584512075,0.98985375,681.65,681.07,0.9868567]
[1752584512882,0.98985375,681.67,681.06,0.9868567]
[1752584515477,0.98985375,681.68,681.05,0.9868567]
[1752584515682,0.98985375,681.69,681.06,0.9868567]
[1752584516184,0.98985375,681.79,681.17,0.9868567]
[1752584516383,0.98985375,681.8,681.16,0.9868567]
[1752584516678,0.98985375,681.78,681.17,0.9868567]
[1752584516882,0.98985375,681.8,681.16,0.9868567]
[1752584517784,0.98985375,681.81,681.16,0.9868567]
[1752584517985,0.98985375,681.82,681.14,0.9868567]
[1752584518284,0.98985375,681.82,680.97,1.312089]
[1752584518285,0.98985375,681.85,681.17,0.9868567]
[1752584518981,0.98985375,681.86,681.17,0.9868567]
[1752584519482,0.98985375,681.78,681.1,0.9868567]
[1752584521684,0.98985375,681.77,681.1,0.9868567]
[1752584522089,0.98985375,681.79,681.09,0.9868567]
[1752584522593,0.98985375,681.81,681.11,0.9868567]
[1752584522989,0.98985375,681.83,681.13,0.9868567]
[1752584523393,0.98985375,681.84,681.14,0.9868567]
[1752584523794,0.98985375,681.86,681.16,0.9868567]
[1752584524394,0.98985375,681.87,681.15,0.9868567]
[1752584524897,0.98985375,681.87,681.16,0.9868567]
[1752584525298,0.98985375,681.87,681.15,0.9868567]
[1752584525595,0.98985375,681.86,681.16,0.9868567]
[1752584526193,0.98985375,681.85,681.16,0.9868567]
[1752584526398,0.98985375,681.85,681.15,0.9868567]
[1752584527296,0.98985375,681.85,681.16,0.9868567]
[1752584527998,0.98985375,681.85,680.81,1.9681336]
[1752584527999,0.98985375,681.84,681.17,0.9868567]
[1752584528196,0.98985375,681.83,681.17,0.9868567]
[1752584528396,0.98985375,681.83,681.16,0.9868567]
[1752584528905,0.98985375,681.84,681.16,0.9868567]
[1752584530397,0.98985375,681.83,681.16,0.9868567]
[1752584531498,0.98985375,681.83,681.17,0.9868567]
[1752584531709,0.98985375,681.82,681.18,0.9868567]
[1752584531901,0.98985375,681.83,681.17,0.9868567]
[1752584533508,0.98985375,681.81,681.15,0.9868567]
[1752584533708,0.25532196,681.93,681.14,0.9868567]
[1752584533709,0.98985375,681.8,681.14,0.9868567]
[1752584533998,0.98985375,681.81,681.14,0.9868567]
[1752584534297,0.98985375,681.8,681.15,0.9868567]
[1752584535201,0.98985375,681.79,681.15,0.9868567]
[1752584535396,0.98985375,681.79,681.16,0.9868567]
[1752584537298,0.98985375,681.78,681.16,0.9868567]
[1752584537500,0.98985375,681.79,681.16,0.9868567]
[1752584538100,0.98985375,681.78,681.16,0.9868567]
[1752584538800,0.98985375,681.78,681.17,0.9868567]
[1752584539001,0.98985375,681.77,681.17,0.9868567]
[1752584541804,0.98985375,681.75,681.18,0.9868567]
[1752584543208,0.98985375,681.77,681.17,0.9868567]
[1752584543608,0.98985375,681.76,681.18,0.9868567]
[1752584543805,0.98985375,681.75,681.18,0.9868567]
[1752584544804,0.98985375,681.75,681.19,0.9868567]
[1752584545210,0.98985375,681.78,681.17,0.9868567]
[1752584545510,0.98985375,681.77,681.17,0.9868567]
[1752584547910,0.98985375,681.79,681.16,0.9868567]
[1752584548910,0.98985375,681.8,681.16,0.9868567]
[1752584549213,0.98985375,681.79,681.16,0.9868567]
[1752584551515,0.98985375,681.82,681.2,0.9868567]
[1752584551917,0.98985375,681.85,681.21,0.9868567]
[1752584552114,0.98985375,681.83,681.22,0.9868567]
[1752584552416,0.98985375,681.84,681.22,0.9868567]
[1752584552816,0.98985375,681.83,681.22,0.9868567]
[1752584553613,0.98985375,681.81,681.24,0.9868567]
[1752584555014,0.98985375,681.8,681.23,0.9868567]
[1752584555721,0.98985375,681.79,681.22,0.9868567]
[1752584556322,0.98985375,681.76,681.2,0.9868567]
[1752584556524,0.98985375,681.76,681.21,0.9868567]
[1752584556720,0.98985375,681.74,681.19,0.9868567]
[1752584557220,0.98985375,681.75,681.19,0.9868567]
[1752584557420,0.98985375,681.74,681.19,0.9868567]
[1752584557719,0.98985375,681.74,681.2,0.9868567]
[1752584559722,0.98985375,681.7,681.23,0.9868567]
[1752584560335,0.98985375,681.72,681.22,0.9868567]
[1752584560828,0.98985375,681.74,681.22,0.9868567]
[1752584561027,0.98985375,681.74,681.21,0.9868567]
[1752584561339,0.98985375,681.77,681.24,0.9868567]
[1752584562529,0.98985375,681.78,681.23,0.9868567]
[1752584563025,0.98985375,681.8,681.22,0.9868567]
[1752584563325,0.98985375,681.81,681.21,0.9868567]
[1752584563528,0.98985375,681.87,681.17,0.9868567]
[1752584563728,0.98985375,681.86,681.18,0.9868567]
[1752584563927,0.98985375,681.87,681.17,0.9868567]
[1752584564127,0.98985375,681.92,681.23,0.9868567]
[1752584564433,0.98985375,682.05,681.34,0.9868567]
[1752584564631,0.98985375,682.07,681.35,0.9868567]
[1752584564832,0.98985375,682.1,681.39,0.9868567]
[1752584565229,0.98985375,682.12,681.37,0.9868567]
[1752584565532,0.25527701,682.16,680.76,0.25530978]
[1752584565533,0.98985375,682.15,681.4,0.9868567]
[1752584565731,1.24513076,682.16,681.41,0.9868567]
[1752584566331,1.24513076,682.16,681.0,1.9681336]
[1752584566332,0.25527701,682.16,681.39,0.9868567]
[1752584566531,0.25527701,682.16,681.4,0.9868567]
[1752584567032,0.25527701,682.16,681.39,0.9868567]
[1752584567427,0.25527701,682.16,681.37,0.9868567]
[1752584567930,0.25527701,682.16,681.38,0.9868567]
[1752584568332,0.25527701,682.16,681.37,0.9868567]
[1752584569228,0.98985375,682.14,681.41,0.9868567]
[1752584569431,0.98985375,682.15,681.4,0.9868567]
[1752584569832,0.98985375,682.14,681.4,0.9868567]
[1752584570333,0.98585639,682.15,681.39,0.98241014]
[1752584570832,0.98585639,682.14,681.38,0.98241014]
[1752584571333,0.98585639,682.15,681.38,0.98241014]
[1752584571829,0.98585639,682.14,681.38,0.98241014]
[1752584572227,0.98585639,682.15,681.37,0.98241014]
[1752584572429,0.98585639,682.14,681.37,0.98241014]
[1752584572729,0.98585639,682.15,681.37,0.98241014]
[1752584574236,0.98585639,682.17,681.35,0.98241014]
[1752584574436,0.98585639,682.15,681.37,0.98241014]
[1752584575338,0.98585639,682.2,681.38,0.98241014]
[1752584575937,0.98585639,682.28,681.39,0.98241014]
[1752584576342,0.25518716,682.35,681.45,0.98241014]
[1752584577542,0.25518716,682.35,681.43,0.98241014]
[1752584578342,0.25518716,682.35,681.41,0.98241014]
[1752584580846,0.98585639,682.25,681.38,0.98241014]
[1752584581045,0.98585639,682.2,681.38,0.98241014]
[1752584581241,0.98585639,682.18,681.36,0.98241014]
[1752584581453,0.98585639,682.16,681.35,0.98241014]
[1752584581645,0.98585639,682.17,681.35,0.98241014]
[1752584581947,0.98585639,682.19,681.33,0.98241014]
[1752584582844,0.98585639,682.2,681.32,0.98241014]
[1752584583448,0.98585639,682.21,681.33,0.98241014]
[1752584583848,0.98585639,682.22,681.33,0.98241014]
[1752584584344,0.98585639,682.21,681.34,0.98241014]
[1752584585144,0.98585639,682.23,681.35,0.98241014]
[1752584585346,0.98585639,682.23,681.34,0.98241014]
[1752584586244,0.98585639,682.24,681.34,0.98241014]
[1752584586448,0.98585639,682.27,681.37,0.98241014]
[1752584587049,0.98585639,682.29,681.35,0.98241014]
[1752584588048,0.98585639,682.3,681.34,0.98241014]
[1752584588344,0.98585639,682.31,681.34,0.98241014]
[1752584588948,0.98585639,682.32,681.33,0.98241014]
[1752584589244,0.98585639,682.31,681.33,0.98241014]
[1752584589448,0.98585639,682.32,681.33,0.98241014]
[1752584590044,0.98585639,682.31,681.33,0.98241014]
[1752584590247,0.98585639,682.32,681.33,0.98241014]
[1752584591547,0.98585639,682.31,681.32,0.98241014]
[1752584591750,0.98585639,682.31,681.33,0.98241014]
[1752584592347,0.98585639,682.31,681.32,0.98241014]
[1752584592851,0.98585639,682.33,681.31,0.98241014]
[1752584598257,0.98585639,682.33,681.32,0.98241014]
[1752584598657,0.98585639,682.31,681.33,0.98241014]
[1752584602361,0.98585639,682.31,681.34,0.98241014]
[1752584602765,0.98585639,682.29,681.35,0.98241014]
[1752584605161,0.98585639,682.28,681.35,0.98241014]
[1752584605365,0.98585639,682.28,681.36,0.98241014]
[1752584605966,0.98585639,682.27,681.36,0.98241014]
[1752584606162,0.98585639,682.27,681.07,2.22332169]
[1752584606163,0.98585639,682.26,681.37,0.98241014]
[1752584606465,0.98585639,682.25,681.38,0.98241014]
[1752584606865,0.98585639,682.26,681.38,0.98241014]
[1752584607062,0.98585639,682.26,681.37,0.98241014]
[1752584607364,0.98585639,682.26,681.38,0.98241014]
[1752584607965,0.25518716,682.35,681.36,0.98241014]
[1752584607966,0.98585639,682.28,681.36,0.98241014]
[1752584608362,0.98585639,682.28,681.37,0.98241014]
[1752584609366,0.98585639,682.27,681.37,0.98241014]
[1752584609863,0.98585639,682.27,681.38,0.98241014]
[1752584610465,0.98585639,682.28,681.38,0.98241014]
[1752584611462,0.98585639,682.29,681.4,0.98241014]
[1752584612068,0.98585639,682.3,681.39,0.98241014]
[1752584612267,0.98585639,682.32,681.43,0.98241014]
[1752584613365,0.98585639,682.31,681.44,0.98241014]
[1752584614469,0.98585639,682.3,681.45,0.98241014]
[1752584615070,0.98585639,682.32,681.47,0.98241014]
[1752584615267,0.98585639,682.29,681.49,0.98241014]
[1752584616270,0.98585639,682.28,681.5,0.98241014]
[1752584616570,0.98585639,682.31,681.56,0.98241014]
[1752584617070,1.24104355,682.35,681.54,0.98241014]
[1752584617466,1.24104355,682.35,681.55,0.98241014]
[1752584617467,0.98585639,682.34,681.55,0.98241014]
[1752584618168,0.98585639,682.33,681.55,0.98241014]
[1752584618367,0.25518716,682.35,681.07,0.25518809]
[1752584618368,0.98585639,682.32,681.56,0.98241014]
[1752584618974,0.98585639,682.33,681.56,0.98241014]
[1752584619269,0.98585639,682.32,681.58,0.98241014]
[1752584620275,0.98585639,682.31,681.6,0.98241014]
[1752584620581,0.98585639,682.31,681.59,0.98241014]
[1752584621470,0.98585639,682.31,681.62,0.98241014]
[1752584622272,0.98585639,682.29,681.63,0.98241014]
[1752584622572,0.98585639,682.31,681.62,0.98241014]
[1752584622986,0.98585639,682.32,681.61,0.98241014]
[1752584623376,0.98585639,682.31,681.63,0.98241014]
[1752584623572,0.98585639,682.31,681.62,0.98241014]
[1752584624175,0.98585639,682.31,681.63,0.98241014]
[1752584626679,0.98585639,682.31,681.46,1.312089]
[1752584626680,0.98585639,682.3,681.64,0.98241014]
[1752584626982,0.98585639,682.32,681.62,0.98241014]
[1752584627881,0.98585639,682.33,681.61,0.98241014]
[1752584628581,0.98585639,682.34,681.61,0.98241014]
[1752584632385,0.98585639,682.33,681.61,0.98241014]
[1752584632885,0.98585639,682.33,681.62,0.98241014]
[1752584633083,0.98585639,682.39,681.59,0.98241014]
[1752584634285,0.98585639,682.38,681.6,0.98241014]
[1752584635181,0.98585639,682.38,681.59,0.98241014]
[1752584635786,0.98585639,682.38,681.6,0.98241014]
[1752584636991,0.98585639,682.33,681.63,0.98241014]
[1752584638191,0.98585639,682.32,681.64,0.98241014]
[1752584638893,0.98585639,682.48,681.79,0.98241014]
[1752584639091,0.98585639,682.49,681.79,0.98241014]
[1752584639291,0.25508802,682.67,681.07,0.25518809]
[1752584639292,0.98585639,682.5,681.78,0.98241014]
[1752584639695,0.98585639,682.44,681.81,0.98241014]
[1752584639894,0.98585639,682.44,681.82,0.98241014]
[1752584640702,0.98585639,682.45,681.83,0.98241014]
[1752584641299,0.98585639,682.51,681.86,0.98241014]
[1752584641496,0.98585639,682.55,681.87,0.98241014]
[1752584641696,0.98585639,682.56,681.88,0.98241014]
[1752584642000,0.98585639,682.6,681.92,0.98241014]
[1752584642195,0.98585639,682.62,681.9,0.98241014]
[1752584642697,0.25502259,682.86,681.92,0.98241014]
[1752584642698,0.98585639,682.63,681.92,0.98241014]
[1752584643394,0.98585639,682.63,681.77,1.312089]
[1752584643395,0.98585639,682.63,681.9,0.98241014]
[1752584643694,0.98585639,682.67,681.92,0.98241014]
[1752584644397,0.98585639,682.69,681.9,0.98241014]
[1752584644997,0.98585639,682.68,681.9,0.98241014]
[1752584645401,0.98585639,682.69,681.88,0.98241014]
[1752584646202,0.98585639,682.74,681.84,0.98241014]
[1752584647001,0.98585639,682.75,681.83,0.98241014]
[1752584647199,0.98585639,682.79,681.87,0.98241014]
[1752584647397,0.98585639,682.8,681.85,0.98241014]
[1752584647697,0.98585639,682.79,681.86,0.98241014]
[1752584647997,0.98585639,682.81,681.85,0.98241014]
[1752584648502,0.98585639,682.82,681.83,0.98241014]
[1752584648898,0.98585639,682.82,681.84,0.98241014]
[1752584649302,0.98585639,682.83,681.82,0.98241014]
[1752584649602,0.98585639,682.8,681.84,0.98241014]
[1752584650498,0.98585639,682.81,681.83,0.98241014]
[1752584651302,0.98585639,682.82,681.82,0.98241014]
[1752584652003,0.98585639,682.81,681.82,0.98241014]
[1752584652302,0.98585639,682.81,681.81,0.98241014]
[1752584653103,0.98585639,682.87,681.87,0.98241014]
[1752584653398,0.98585639,682.88,681.85,0.98241014]
[1752584653899,0.98585639,682.91,681.89,0.98241014]
[1752584654102,0.98585639,682.9,681.9,0.98241014]
[1752584654298,0.98585639,682.91,681.88,0.98241014]
[1752584655098,0.98585639,682.91,681.89,0.98241014]
[1752584655503,0.98585639,682.92,681.88,0.98241014]
[1752584656098,0.98585639,682.93,681.89,0.98241014]
[1752584656397,0.98585639,682.93,681.07,0.25518809]
[1752584656398,0.98585639,682.94,681.87,0.98241014]
[1752584656602,0.98585639,682.93,681.87,0.98241014]
[1752584657002,0.98585639,682.9,681.89,0.98241014]
[1752584657203,0.98585639,682.91,681.88,0.98241014]
[1752584658397,0.98585639,682.91,681.87,0.98241014]
[1752584658597,0.98585639,682.91,681.88,0.98241014]
[1752584659099,0.98585639,682.9,681.87,0.98241014]
[1752584661002,0.98585639,682.91,681.86,0.98241014]
[1752584661303,1.24083133,682.96,681.74,0.98241014]
[1752584661803,0.98585639,682.95,681.74,0.98241014]
[1752584662002,1.24083133,682.96,681.74,0.98241014]
[1752584662198,0.98585639,682.95,681.72,0.98241014]
[1752584662402,0.98585639,682.93,681.71,0.98241014]
[1752584662600,0.98585639,682.94,681.7,0.98241014]
[1752584663003,0.98585639,682.94,681.69,0.98241014]
[1752584663400,0.98585639,682.92,681.67,0.98241014]
[1752584663801,0.98585639,682.94,681.7,0.98241014]
[1752584663999,0.25497494,682.96,681.72,0.98241014]
[1752584664404,0.25497494,682.96,681.71,0.98241014]
[1752584664601,0.25497494,682.96,681.72,0.98241014]
[1752584664902,0.25497494,682.96,681.72,0.97306833]
[1752584665104,0.25497494,682.96,681.83,0.97306833]
[1752584665402,0.25497494,682.96,681.84,0.97306833]
[1752584668206,0.25497494,682.96,681.85,0.97306833]
[1752584668506,0.25497494,682.96,681.07,0.25518809]
[1752584668507,0.25497494,682.96,681.86,0.97306833]
[1752584668905,0.25497494,682.96,681.89,0.97306833]
[1752584669105,0.25497494,682.96,681.9,0.97306833]
[1752584669703,0.25497494,682.96,681.89,0.97306833]
[1752584672906,0.25497494,682.96,681.88,0.97306833]
[1752584673610,0.25497494,682.96,681.89,0.97306833]
[1752584674010,0.25497494,682.96,681.9,0.97306833]
[1752584674909,0.25497494,682.96,681.89,0.97306833]
[1752584676913,0.25497494,682.96,681.9,0.97306833]
[1752584677212,0.25497494,682.96,681.92,0.97306833]
[1752584677714,0.25497494,682.96,681.93,0.97306833]
[1752584677913,0.25497494,682.96,681.92,0.97306833]
[1752584682313,0.25497494,682.96,681.93,0.97306833]
[1752584682513,0.25497494,682.96,681.94,0.97306833]
[1752584683316,0.25497494,682.96,681.93,0.97306833]
[1752584683517,0.97970839,683.04,681.94,0.97306833]
[1752584684318,0.97970839,683.04,681.95,0.97306833]
[1752584685317,0.97970839,683.03,681.96,0.97306833]
[1752584685814,0.97970839,683.05,681.96,0.97306833]
[1752584686314,0.25492264,683.06,681.98,0.97306833]
[1752584686518,0.25492264,683.06,682.01,0.97306833]
[1752584688214,0.25492264,683.06,682.02,0.97306833]
[1752584689315,0.25492264,683.06,682.03,0.97306833]
[1752584689719,0.25492264,683.06,682.07,0.97306833]
[1752584690415,0.25492264,683.06,682.08,0.97306833]
[1752584692316,0.25492264,683.06,682.09,0.97306833]
[1752584693215,0.25492264,683.06,682.11,0.97306833]
[1752584693513,0.97970839,683.13,682.11,0.97306833]
[1752584694119,0.97970839,683.11,682.12,0.97306833]
[1752584694316,0.97970839,683.1,682.14,0.97306833]
[1752584695321,0.97970839,683.09,682.15,0.97306833]
[1752584695820,0.97970839,683.1,682.16,0.97306833]
[1752584696419,0.97970839,683.09,682.17,0.97306833]